{"text_format":"3","workbook":"xlsx","n_sheets":4,"sheets":["Început","Cheltuieli","Venit","Rezumat"],"not_rendered":{"charts":1,"defined_names":2},"read":"whole","date_system":"1900"}

{"sheet":"Început","index":0,"n_rows":8,"n_cols":2,"rows_kept":8}
[null,"DESPRE ACEST ȘABLON"]
[null,"Utilizați registrul de lucru Buget de eveniment pentru a urmări Cheltuieli efectuate și Venit obținute în urma unui eveniment."]
[null,"Completați numele evenimentului și introduceți detaliile în tabelele din foile de lucru Cheltuieli și Venit."]
[null,"Total cheltuieli și Venit total sunt calculate automat."]
[null,"Rezumatul pentru profit și pierderi și Diagrama sunt actualizate automat în foaia de lucru Rezumat."]
[null,"Notă: "]
[null,"Găsiți instrucțiuni suplimentare în coloana A din fiecare foaie de lucru. Acest text a fost ascuns intenționat. Pentru a elimina textul, selectați coloana A, apoi DELETE. Pentru a reafișa textul, selectați coloana A, apoi schimbați culoarea de font."]
[null,"Pentru a afla mai multe despre tabele, apăsați SHIFT, apoi F10 într-un tabel, selectați opțiunea TABEL, apoi TEXT ALTERNATIV."]

{"sheet":"Cheltuieli","index":1,"n_rows":33,"n_cols":8,"rows_kept":33,"merged":[[0,5,0,7],[1,1,1,7],[2,6,2,7]]}
["Introduceți cheltuielile Estimate și Real pentru fiecare categorie în tabelele corespunzătoare din această foaie de lucru. Totalul cheltuielilor este calculat automat Găsiți instrucțiuni utile despre cum să utilizați această foaie de lucru în celulele din această coloană. Apăsați săgeata în jos pentru a începe."]
["Introduceți Nume eveniment în celula din dreapta pentru a particulariza titlul acestei foi de lucru și al altora.","Buget de eveniment pentru \nNume eveniment"]
["Estimate Cheltuieli se află în celula G3.",{"$nulls":5}," Cheltuieli"]
["Eticheta Estimate se află în celula G4 și eticheta Real în celula H4.",{"$nulls":5},"Estimate","Real"]
["Eticheta Total cheltuieli se află în celula din dreapta. Total cheltuieli estimate este calculat automat în celula G5. Total cheltuieli real și bara de date care reprezintă această valoare sunt actualizate automat în celula H5. Următoarele instrucțiuni se află în celula A7.","Total cheltuieli",{"$nulls":4},{"$f":"SUM(C12,C20,C26,C33,G12,G20,G25)","v":{"v":1145,"d":"1,145.00 lei"}},{"$f":"SUM(D12,D20,D26,D33,H12,H20,H25)","v":{"v":395,"d":"395.00 lei"}}]
[]
["Introduceți Cheltuieli Locație în tabel, începând cu celula din dreapta și Cheltuieli Protocol în tabel, începând cu celula F7. Următoarele instrucțiuni se află în celula A14.","Locație","Estimat","Real",null,"Băuturi răcoritoare","Estimat","Real"]
[null,"Taxe pentru sală",{"v":500,"d":"500.00 lei"},{"v":250,"d":"250.00 lei"},null,"Alimente"]
[null,"Personalul locației",{"v":400,"d":"400.00 lei"},{"v":50,"d":"50.00 lei"},null,"Băuturi"]
[null,"Echipament",{"$nulls":3},"Articole din material textil"]
[null,"Mese și scaune",{"$nulls":3},"Personal și recompense"]
[null,"Total",{"$f":"SUBTOTAL(109,CheltuieliLocație[Estimat])","v":{"v":900,"d":"900.00 lei"}},{"$f":"SUBTOTAL(109,CheltuieliLocație[Real])","v":{"v":300,"d":"300.00 lei"}},null,"Total",{"$f":"SUBTOTAL(109,CheltuieliProtocol[Estimat])","v":{"v":0,"d":"0.00 lei"}},{"$f":"SUBTOTAL(109,CheltuieliProtocol[Real])","v":{"v":0,"d":"0.00 lei"}}]
[]
["Introduceți Cheltuieli Decorațiuni în tabel, începând cu celula din dreapta și Cheltuieli Program în tabel, începând cu celula F14. Următoarele instrucțiuni se află în celula A22.","Decorațiuni","Estimat","Real",null,"Program","Estimat","Real"]
[null,"Flori",{"v":200,"d":"200.00 lei"},{"v":50,"d":"50.00 lei"},null,"Divertisment"]
[null,"Lumânări",{"$nulls":3},"Vorbitori"]
[null,"Iluminare",{"$nulls":3},"Călătorii"]
[null,"Baloane",{"$nulls":3},"Hotel"]
[null,"Consumabile din hârtie",{"$nulls":3},"Altele"]
[null,"Total",{"$f":"SUBTOTAL(109,CheltuieliDecorațiuni[Estimat])","v":{"v":200,"d":"200.00 lei"}},{"$f":"SUBTOTAL(109,CheltuieliDecorațiuni[Real])","v":{"v":50,"d":"50.00 lei"}},null,"Total",{"$f":"SUBTOTAL(109,CheltuieliProgram[Estimat])","v":{"v":0,"d":"0.00 lei"}},{"$f":"SUBTOTAL(109,CheltuieliProgram[Real])","v":{"v":0,"d":"0.00 lei"}}]
[]
["Introduceți Cheltuieli Publicitate în tabel, începând cu celula din dreapta și Cheltuieli Premii în tabel, începând cu celula F22. Următoarele instrucțiuni se află în celula A28.","Publicitate","Estimat","Real",null,"Premii","Estimat","Reale"]
[null,"Grafică",{"v":45,"d":"45.00 lei"},{"v":45,"d":"45.00 lei"},null,"Panglici/plachete/trofee"]
[null,"Fotocopiere/imprimare",{"$nulls":3},"Cadouri"]
[null,"Cheltuieli cu poșta",{"$nulls":3},"Total",{"$f":"SUBTOTAL(109,CheltuieliPremii[Estimat])","v":{"v":0,"d":"0.00 lei"}},{"$f":"SUBTOTAL(109,CheltuieliPremii[Reale])","v":{"v":0,"d":"0.00 lei"}}]
[null,"Total",{"$f":"SUBTOTAL(109,CheltuieliPublicitate[Estimat])","v":{"v":45,"d":"45.00 lei"}},{"$f":"SUBTOTAL(109,CheltuieliPublicitate[Real])","v":{"v":45,"d":"45.00 lei"}}]
[]
["Introduceți Cheltuieli Diverse în tabel, începând cu celula din dreapta.","Diverse","Estimat","Real"]
[null,"Telefon"]
[null,"Transport"]
[null,"Foi de scris"]
[null,"Servicii fax"]
[null,"Total",{"$f":"SUBTOTAL(109,CheltuieliDiverse[Estimat])","v":{"v":0,"d":"0.00 lei"}},{"$f":"SUBTOTAL(109,CheltuieliDiverse[Real])","v":{"v":0,"d":"0.00 lei"}}]

{"sheet":"Venit","index":2,"n_rows":30,"n_cols":7,"rows_kept":30,"merged":[[1,1,1,6],[2,5,2,6]]}
["Introduceți veniturile Estimat și Real pentru fiecare categorie în tabelele corespunzătoare din această foaie de lucru. Venitul total se calculează automat. Găsiți instrucțiuni utile despre cum să utilizați această foaie de lucru în celulele din această coloană. Apăsați săgeata în jos pentru a începe."]
["Numele evenimentului se actualizează automat în celula din dreapta.",{"$f":"Cheltuieli!B2","v":"Buget de eveniment pentru \nNume eveniment"}]
["Eticheta Venit se află în celula F3.",{"$nulls":4}," Venit"]
["Eticheta Estimat se află în celula F4 și eticheta Real în celula G4.",{"$nulls":4},"Estimat","Real"]
["Eticheta Venit total se află în celula din dreapta. Venitul total estimat este calculat automat în celula F5. Venitul total real și bara de date care reprezintă această valoare sunt actualizate automat în celula G5.","Venit total",{"$nulls":3},{"$f":"SUM(Intrări[[#Totals],[Total estimat]],AnunțuriÎnProgram[[#Totals],[Total estimat]],ExpozanțiȘiVânzători[[#Totals],[Total estimat]],VânzareArticol[[#Totals],[Total estimat]])","v":{"v":1936,"d":"1,936.00 lei"}},{"$f":"SUM(Intrări[[#Totals],[Total real]],AnunțuriÎnProgram[[#Totals],[Total real]],ExpozanțiȘiVânzători[[#Totals],[Total real]],VânzareArticol[[#Totals],[Total real]])","v":{"v":1831,"d":"1,831.00 lei"}}]
["Eticheta Intrări se află în celula din dreapta.","Intrări"]
["Introduceți numărul estimat și numărul real de intrări împreună cu prețul biletelor în tabel, începând cu celula din dreapta. Venitul estimat și venitul real din intrări se calculează automat. Următoarele instrucțiuni se află în celula A12.","Estimat","Real","Tip","Preț","Total estimat","Total real"]
[null,300,278,"Adulți",{"v":5,"d":"5.00 lei"},{"$f":"B8*E8","v":{"v":1500,"d":"1,500.00 lei"}},{"$f":"C8*E8","v":{"v":1390,"d":"1,390.00 lei"}}]
[null,197,195,"Copii",{"v":2,"d":"2.00 lei"},{"$f":"B9*E9","v":{"v":394,"d":"394.00 lei"}},{"$f":"C9*E9","v":{"v":390,"d":"390.00 lei"}}]
[null,42,51,"Altele",{"v":1,"d":"1.00 lei"},{"v":42,"d":"42.00 lei"},{"v":51,"d":"51.00 lei"}]
[null," ",{"$nulls":3},{"$f":"SUBTOTAL(109,Intrări[Total estimat])","v":{"v":1936,"d":"1,936.00 lei"}},{"$f":"SUBTOTAL(109,Intrări[Total real])","v":{"v":1831,"d":"1,831.00 lei"}}]
["Eticheta Reclame în cadrul programului se află în celula din dreapta.","Reclame în cadrul programului"]
["Introduceți numărul estimat și numărul real de reclame în cadrul programului și tarifele pentru anunțuri în tabel, începând cu celula din dreapta. Venitul estimat și venitul real din reclame se calculează automat. Următoarele instrucțiuni se află în celula A18.","Estimate","Real","Tip","Preț","Total estimat","Total real"]
[{"$nulls":3},"Coperți",null,{"$f":"B14*E14","v":{"v":0,"d":"0.00 lei"}},{"$f":"C14*E14","v":{"v":0,"d":"0.00 lei"}}]
[{"$nulls":3},"Jumătăți de pagină",null,{"$f":"B15*E15","v":{"v":0,"d":"0.00 lei"}},{"$f":"C15*E15","v":{"v":0,"d":"0.00 lei"}}]
[{"$nulls":3},"Sferturi de pagină",null,{"v":0,"d":"0.00 lei"},{"v":0,"d":"0.00 lei"}]
[null," ",{"$nulls":3},{"$f":"SUBTOTAL(109,AnunțuriÎnProgram[Total estimat])","v":{"v":0,"d":"0.00 lei"}},{"$f":"SUBTOTAL(109,AnunțuriÎnProgram[Total real])","v":{"v":0,"d":"0.00 lei"}}]
["Eticheta Expozanți sau Furnizori se află în celula din dreapta.","Expozanți/furnizori"]
["Introduceți numărul estimat și numărul real de expozanți și de furnizori și tarifele pentru standuri în tabel, începând cu celula din dreapta. Venitul estimat și venitul real se calculează automat. Următoarele instrucțiuni se află în celula A24.","Estimați","Real","Tip","Preț","Total estimat","Total real"]
[{"$nulls":3},"Standuri mari",null,{"$f":"B20*E20","v":{"v":0,"d":"0.00 lei"}},{"$f":"C20*E20","v":{"v":0,"d":"0.00 lei"}}]
[{"$nulls":3},"Standuri medii",null,{"$f":"B21*E21","v":{"v":0,"d":"0.00 lei"}},{"$f":"C21*E21","v":{"v":0,"d":"0.00 lei"}}]
[{"$nulls":3},"Standuri mici",null,{"v":0,"d":"0.00 lei"},{"v":0,"d":"0.00 lei"}]
[null," ",{"$nulls":3},{"$f":"SUBTOTAL(109,ExpozanțiȘiVânzători[Total estimat])","v":{"v":0,"d":"0.00 lei"}},{"$f":"SUBTOTAL(109,ExpozanțiȘiVânzători[Total real])","v":{"v":0,"d":"0.00 lei"}}]
["Eticheta Vânzare de articole se află în celula din dreapta.","Vânzare de articole"]
["Introduceți numărul estimat și numărul real de articole vândute și prețurile articolelor în tabel, începând cu celula din dreapta. Venitul estimat și venitul real se calculează automat.","Estimată","Reală","Tip","Preț","Total estimat","Total real"]
[{"$nulls":3},"Articole",null,{"$f":"B26*E26","v":{"v":0,"d":"0.00 lei"}},{"$f":"C26*E26","v":{"v":0,"d":"0.00 lei"}}]
[{"$nulls":3},"Articole",null,{"$f":"B27*E27","v":{"v":0,"d":"0.00 lei"}},{"$f":"C27*E27","v":{"v":0,"d":"0.00 lei"}}]
[{"$nulls":3},"Articole",null,{"v":0,"d":"0.00 lei"},{"v":0,"d":"0.00 lei"}]
[{"$nulls":3},"Articole",null,{"v":0,"d":"0.00 lei"},{"v":0,"d":"0.00 lei"}]
[null," ",{"$nulls":3},{"$f":"SUBTOTAL(109,VânzareArticol[Total estimat])","v":{"v":0,"d":"0.00 lei"}},{"$f":"SUBTOTAL(109,VânzareArticol[Total real])","v":{"v":0,"d":"0.00 lei"}}]

{"sheet":"Rezumat","index":3,"n_rows":9,"n_cols":4,"rows_kept":9,"merged":[[1,1,1,3],[2,2,2,3],[8,1,8,4],[9,1,9,3]]}
["Rezumatul profiturilor și pierderilor și diagrama care arată venitul și cheltuielile totale se actualizează automat în această foaie de lucru. Găsiți instrucțiuni utile despre cum să utilizați această foaie de lucru în celulele din această coloană. Apăsați săgeata în jos pentru a începe."]
["Nume eveniment se actualizează automat în celula din dreapta.",{"$f":"Cheltuieli!B2","v":"Buget de eveniment pentru \nNume eveniment"}]
["Eticheta Rezumat profit/pierderi se află în celula C3. Următoarele instrucțiuni se află în celula A5.",null,"Rezumat profit/pierderi"]
[]
["Tabelul Total care începe de la celula din dreapta se actualizează automat. Următoarele instrucțiuni se află în celula A9.","Total","Estimat","Real"]
[null,"Venit total",{"$f":"Venit!F5","v":{"v":1936,"d":"1,936.00 lei"}},{"$f":"Venit!G5","v":{"v":1831,"d":"1,831.00 lei"}}]
[null,"Total cheltuieli",{"$f":"Cheltuieli!G5","v":{"v":1145,"d":"1,145.00 lei"}},{"$f":"Cheltuieli!H5","v":{"v":395,"d":"395.00 lei"}}]
[null,"Profit total (sau pierderi totale)",{"$f":"C6-C7","v":{"v":791,"d":"791.00 lei"}},{"$f":"D6-D7","v":{"v":1436,"d":"1,436.00 lei"}}]
["Diagrama coloană grupată care compară venitul total estimat cu cel real și cheltuielile total cheltuieli cu cele reale se află în celula din dreapta.","Diagrama coloană grupată care compară venitul total estimat cu cel real și cheltuielile total cheltuieli cu cele reale se află în această celulă."]